[Event "Late-Titled-Tuesday-Blitz-February-13-2024"]
[Site "Chess.com"]
[Date "2024.02.13"]
[Round "7"]
[White "reevecanada"]
[Black "sansanathalia"]
[Result "1-0"]
[WhiteElo "2567"]
[BlackElo "2380"]
[TimeControl "180+1"]
[EndTime "15:18:23 PST"]
[Termination "reevecanada won on time"]

1. e4 {[%clk 0:02:57]} 1... c5 {[%clk 0:02:56.3]} 2. Nf3 {[%clk 0:02:56.4]} 2...
d6 {[%clk 0:02:53.4]} 3. Bb5+ {[%clk 0:02:53.6]} 3... Bd7 {[%clk 0:02:51.8]} 4.
Bxd7+ {[%clk 0:02:53.8]} 4... Qxd7 {[%clk 0:02:52.7]} 5. O-O {[%clk 0:02:53.9]}
5... Nf6 {[%clk 0:02:48.7]} 6. Re1 {[%clk 0:02:50.7]} 6... e6 {[%clk 0:02:47.9]}
7. c3 {[%clk 0:02:46.1]} 7... Be7 {[%clk 0:02:47.6]} 8. d4 {[%clk 0:02:44.5]}
8... cxd4 {[%clk 0:02:46.8]} 9. cxd4 {[%clk 0:02:45.4]} 9... d5 {[%clk
0:02:44.4]} 10. e5 {[%clk 0:02:44]} 10... Ne4 {[%clk 0:02:43.9]} 11. Nbd2 {[%clk
0:02:42.7]} 11... Nxd2 {[%clk 0:02:43.2]} 12. Bxd2 {[%clk 0:02:43.6]} 12... O-O
{[%clk 0:02:43]} 13. Rc1 {[%clk 0:02:42.7]} 13... Nc6 {[%clk 0:02:39.2]} 14. Rc3
{[%clk 0:02:39]} 14... Rfc8 {[%clk 0:02:22.2]} 15. a3 {[%clk 0:02:35.7]} 15...
b5 {[%clk 0:02:17]} 16. Rd3 {[%clk 0:02:24.2]} 16... a5 {[%clk 0:02:06.7]} 17.
Ng5 {[%clk 0:02:21.1]} 17... Bxg5 {[%clk 0:01:56.8]} 18. Bxg5 {[%clk 0:02:18.8]}
18... Ne7 {[%clk 0:01:52.3]} 19. Rh3 {[%clk 0:02:09.8]} 19... h6 {[%clk
0:01:38.9]} 20. Bf6 {[%clk 0:01:42.3]} 20... Kf8 {[%clk 0:01:00.8]} 21. Qh5
{[%clk 0:01:34.7]} 21... Ng8 {[%clk 0:00:42.9]} 22. Bxg7+ {[%clk 0:01:11.6]}
22... Kxg7 {[%clk 0:00:38.6]} 23. Rg3+ {[%clk 0:01:11.8]} 23... Kf8 {[%clk
0:00:38.5]} 24. Qg4 {[%clk 0:01:11.1]} 24... Ke7 {[%clk 0:00:24.2]} 25. Qh4+
{[%clk 0:01:09.6]} 25... Kf8 {[%clk 0:00:22.8]} 26. h3 {[%clk 0:01:04.6]} 26...
Qd8 {[%clk 0:00:22.1]} 27. Qh5 {[%clk 0:00:51.3]} 27... Ke7 {[%clk 0:00:19.9]}
28. Ree3 {[%clk 0:00:49.6]} 28... Qf8 {[%clk 0:00:17]} 29. Ref3 {[%clk
0:00:49.2]} 29... Ke8 {[%clk 0:00:16]} 30. Rg4 {[%clk 0:00:44.2]} 30... Rc1+
{[%clk 0:00:15.4]} 31. Kh2 {[%clk 0:00:43.9]} 31... Ra7 {[%clk 0:00:15.8]} 32.
Rfg3 {[%clk 0:00:38.6]} 32... Ne7 {[%clk 0:00:14]} 33. Rg7 {[%clk 0:00:39]}
33... Rc8 {[%clk 0:00:06.7]} 34. R3g4 {[%clk 0:00:35.9]} 34... b4 {[%clk
0:00:04.2]} 35. axb4 {[%clk 0:00:33.5]} 35... axb4 {[%clk 0:00:05.1]} 36. b3
{[%clk 0:00:33.6]} 36... Rb7 {[%clk 0:00:05.1]} 37. Rh7 {[%clk 0:00:32.6]} 37...
Nf5 {[%clk 0:00:04.2]} 38. f3 {[%clk 0:00:22.3]} 38... Rbc7 {[%clk 0:00:04.4]}
39. h4 {[%clk 0:00:20.8]} 39... Ke7 {[%clk 0:00:03.4]} 40. Rf4 {[%clk
0:00:19.3]} 40... Rc2 {[%clk 0:00:02.3]} 41. Rxf5 {[%clk 0:00:17.6]} 41... exf5
{[%clk 0:00:02.1]} 42. Qxf5 {[%clk 0:00:18.5]} 42... Qg8 {[%clk 0:00:02.1]} 43.
Qf6+ {[%clk 0:00:16.4]} 43... Kf8 {[%clk 0:00:01.8]} 44. Qxh6+ {[%clk
0:00:15.6]} 44... Ke8 {[%clk 0:00:01.5]} 45. Rg7 {[%clk 0:00:16.1]} 45... Rxg2+
{[%clk 0:00:01.3]} 46. Rxg2 {[%clk 0:00:15.7]} 46... Qf8 {[%clk 0:00:01.9]} 47.
Qf6 {[%clk 0:00:14.8]} 47... Rc3 {[%clk 0:00:01.9]} 48. e6 {[%clk 0:00:14.9]}
48... fxe6 {[%clk 0:00:01.9]} 49. Qxe6+ {[%clk 0:00:14.5]} 49... Kd8 {[%clk
0:00:02.1]} 50. Rg8 {[%clk 0:00:13.9]} 50... Rc2+ {[%clk 0:00:01.3]} 51. Kg3
{[%clk 0:00:13.7]} 1-0

[Event "Late-Titled-Tuesday-Blitz-February-13-2024"]
[Site "Chess.com"]
[Date "2024.02.13"]
[Round "7"]
[White "DraningWaterHi"]
[Black "HajiyevKanan"]
[Result "0-1"]
[WhiteElo "2216"]
[BlackElo "2478"]
[TimeControl "180+1"]
[EndTime "15:18:23 PST"]
[Termination "HajiyevKanan won on time"]

1. d4 {[%clk 0:03:00.9]} 1... d5 {[%clk 0:03:00.2]} 2. Bf4 {[%clk 0:02:57.5]}
2... c5 {[%clk 0:03:00.2]} 3. e3 {[%clk 0:02:57.7]} 3... cxd4 {[%clk 0:03:00.4]}
4. exd4 {[%clk 0:02:57.9]} 4... Nc6 {[%clk 0:03:01.3]} 5. c3 {[%clk 0:02:58.2]}
5... Nf6 {[%clk 0:03:01.9]} 6. Nd2 {[%clk 0:02:58.5]} 6... Bg4 {[%clk
0:03:02.4]} 7. Be2 {[%clk 0:02:57]} 7... Bxe2 {[%clk 0:03:01.5]} 8. Qxe2 {[%clk
0:02:57.5]} 8... e6 {[%clk 0:03:02.4]} 9. Ngf3 {[%clk 0:02:57.9]} 9... Bd6
{[%clk 0:03:03.3]} 10. Ne5 {[%clk 0:02:57.7]} 10... O-O {[%clk 0:03:03.4]} 11.
O-O {[%clk 0:02:54.3]} 11... Qc7 {[%clk 0:03:03.4]} 12. Rfe1 {[%clk 0:02:51.6]}
12... Rab8 {[%clk 0:03:02.3]} 13. Qf3 {[%clk 0:02:46.2]} 13... b5 {[%clk
0:03:00.8]} 14. Rac1 {[%clk 0:02:38.8]} 14... Rfc8 {[%clk 0:02:59.3]} 15. g4
{[%clk 0:02:35.8]} 15... h6 {[%clk 0:02:51.8]} 16. Qg3 {[%clk 0:02:32.1]} 16...
Ne7 {[%clk 0:02:40.4]} 17. f3 {[%clk 0:02:26.7]} 17... g5 {[%clk 0:02:34.4]} 18.
Be3 {[%clk 0:02:23.7]} 18... Ng6 {[%clk 0:02:34.8]} 19. Qh3 {[%clk 0:02:19.2]}
19... Kg7 {[%clk 0:01:53.2]} 20. Nxg6 {[%clk 0:02:18.4]} 20... Kxg6 {[%clk
0:01:50.9]} 21. Bf2 {[%clk 0:02:18.5]} 21... Bf4 {[%clk 0:01:50.5]} 22. Bg3
{[%clk 0:02:16.1]} 22... b4 {[%clk 0:01:46.2]} 23. c4 {[%clk 0:02:13.6]} 23...
dxc4 {[%clk 0:01:35.4]} 24. Nxc4 {[%clk 0:02:05.8]} 24... Kg7 {[%clk 0:01:25.3]}
25. b3 {[%clk 0:01:53.9]} 25... Nd5 {[%clk 0:01:20.7]} 26. Kh1 {[%clk
0:01:38.1]} 26... Qe7 {[%clk 0:01:13]} 27. Rcd1 {[%clk 0:01:34]} 27... Qf6
{[%clk 0:01:09.6]} 28. Qg2 {[%clk 0:01:26.4]} 28... Nc3 {[%clk 0:01:06.1]} 29.
Rd3 {[%clk 0:01:26]} 29... Rd8 {[%clk 0:01:00.3]} 30. Ne5 {[%clk 0:01:20.6]}
30... Rbc8 {[%clk 0:00:55.7]} 31. Qf2 {[%clk 0:01:10]} 31... Rd5 {[%clk
0:00:48.7]} 32. Nc4 {[%clk 0:01:07.5]} 32... Rcd8 {[%clk 0:00:47.4]} 33. Re5
{[%clk 0:00:45.7]} 33... R8d7 {[%clk 0:00:11.1]} 34. a3 {[%clk 0:00:42.1]} 34...
a5 {[%clk 0:00:10.3]} 35. Nb6 {[%clk 0:00:33.3]} 35... Bxe5 {[%clk 0:00:06.7]}
36. dxe5 {[%clk 0:00:29]} 36... Qg6 {[%clk 0:00:06.4]} 37. Nxd5 {[%clk
0:00:11.3]} 37... Rxd5 {[%clk 0:00:05.3]} 38. Rxd5 {[%clk 0:00:10.6]} 38... Nxd5
{[%clk 0:00:06]} 39. axb4 {[%clk 0:00:09.9]} 39... axb4 {[%clk 0:00:05.9]} 40.
Qd4 {[%clk 0:00:09.6]} 40... Qb1+ {[%clk 0:00:06.1]} 41. Kg2 {[%clk 0:00:08.9]}
41... Qxb3 {[%clk 0:00:06.8]} 42. h4 {[%clk 0:00:08.4]} 42... Qe3 {[%clk
0:00:06.2]} 43. Qc4 {[%clk 0:00:07.2]} 43... Qd2+ {[%clk 0:00:05.3]} 44. Kh3
{[%clk 0:00:07.6]} 44... Qc3 {[%clk 0:00:05.9]} 45. Qe4 {[%clk 0:00:07.4]} 45...
b3 {[%clk 0:00:06]} 46. hxg5 {[%clk 0:00:07]} 46... hxg5 {[%clk 0:00:06.9]} 47.
Be1 {[%clk 0:00:04]} 47... Qc2 {[%clk 0:00:06.1]} 0-1

[Event "Late-Titled-Tuesday-Blitz-February-13-2024"]
[Site "Chess.com"]
[Date "2024.02.13"]
[Round "7"]
[White "EsmeraldasAnderson03"]
[Black "AradNazari"]
[Result "0-1"]
[WhiteElo "2452"]
[BlackElo "2778"]
[TimeControl "180+1"]
[EndTime "15:18:25 PST"]
[Termination "AradNazari won by checkmate"]

1. d4 {[%clk 0:03:00.9]} 1... Nf6 {[%clk 0:02:58.7]} 2. c4 {[%clk 0:03:01.5]}
2... g6 {[%clk 0:02:58.9]} 3. Nc3 {[%clk 0:03:01.8]} 3... d5 {[%clk 0:02:59.4]}
4. cxd5 {[%clk 0:03:01.9]} 4... Nxd5 {[%clk 0:03:00.3]} 5. e4 {[%clk 0:03:02.5]}
5... Nxc3 {[%clk 0:03:00.8]} 6. bxc3 {[%clk 0:03:03.4]} 6... Bg7 {[%clk
0:03:01.3]} 7. Bc4 {[%clk 0:03:04]} 7... O-O {[%clk 0:03:01.7]} 8. Ne2 {[%clk
0:03:04.6]} 8... c5 {[%clk 0:03:02]} 9. O-O {[%clk 0:03:04.4]} 9... Nc6 {[%clk
0:03:02.5]} 10. Be3 {[%clk 0:03:04.2]} 10... Bg4 {[%clk 0:03:02.5]} 11. f3
{[%clk 0:03:04]} 11... Bd7 {[%clk 0:03:02.2]} 12. Qd2 {[%clk 0:03:02.6]} 12...
Qa5 {[%clk 0:03:01.1]} 13. Rab1 {[%clk 0:02:53.6]} 13... cxd4 {[%clk 0:03:00.7]}
14. cxd4 {[%clk 0:02:53.9]} 14... Qxd2 {[%clk 0:02:57.7]} 15. Bxd2 {[%clk
0:02:54.8]} 15... b6 {[%clk 0:02:42.1]} 16. Be3 {[%clk 0:02:44.7]} 16... Na5
{[%clk 0:02:41.8]} 17. Ba6 {[%clk 0:02:44.5]} 17... Rad8 {[%clk 0:02:33.5]} 18.
Rbc1 {[%clk 0:02:43.2]} 18... Bc8 {[%clk 0:02:25.1]} 19. Bb5 {[%clk 0:02:21]}
19... Bd7 {[%clk 0:02:20.1]} 20. Ba6 {[%clk 0:02:21.1]} 20... Bc8 {[%clk
0:02:15.8]} 21. Bb5 {[%clk 0:02:17.4]} 21... a6 {[%clk 0:02:06.9]} 22. Bd3
{[%clk 0:02:17.3]} 22... b5 {[%clk 0:01:57.2]} 23. Rc7 {[%clk 0:01:44.8]} 23...
Be5 {[%clk 0:01:56.7]} 24. Rxe7 {[%clk 0:01:16]} 24... Nc6 {[%clk 0:01:25.4]}
25. Rxe5 {[%clk 0:00:48.1]} 25... Nxe5 {[%clk 0:01:23.8]} 26. Bb1 {[%clk
0:00:47.5]} 26... Nc4 {[%clk 0:01:21.3]} 27. Bh6 {[%clk 0:00:43.9]} 27... Rfe8
{[%clk 0:01:21.1]} 28. Bg5 {[%clk 0:00:43.9]} 28... Rd7 {[%clk 0:01:18.4]} 29.
d5 {[%clk 0:00:31.4]} 29... Bb7 {[%clk 0:01:08]} 30. Bf6 {[%clk 0:00:26.3]}
30... Bxd5 {[%clk 0:01:03.2]} 31. Ng3 {[%clk 0:00:20.7]} 31... Bc6 {[%clk
0:00:58.7]} 32. h4 {[%clk 0:00:20.6]} 32... h5 {[%clk 0:00:57.6]} 33. Rc1 {[%clk
0:00:17.6]} 33... Bb7 {[%clk 0:00:54.6]} 34. Kh2 {[%clk 0:00:17.5]} 34... Rc8
{[%clk 0:00:54.1]} 35. e5 {[%clk 0:00:11.9]} 35... Nd2 {[%clk 0:00:47.4]} 36.
Rd1 {[%clk 0:00:11.1]} 36... Nxf3+ {[%clk 0:00:45.2]} 37. gxf3 {[%clk
0:00:11.7]} 37... Rxd1 {[%clk 0:00:45.6]} 38. Be4 {[%clk 0:00:08.8]} 38... Bxe4
{[%clk 0:00:43.8]} 39. Nxe4 {[%clk 0:00:09]} 39... Rc2+ {[%clk 0:00:41.7]} 40.
Kg3 {[%clk 0:00:09.7]} 40... Rxa2 {[%clk 0:00:40.3]} 41. Kf4 {[%clk 0:00:09.5]}
41... Ra4 {[%clk 0:00:36]} 42. Kg5 {[%clk 0:00:09.6]} 42... Rg1+ {[%clk
0:00:32.9]} 43. Kh6 {[%clk 0:00:09.7]} 43... Rxe4 {[%clk 0:00:32.7]} 44. fxe4
{[%clk 0:00:09.8]} 44... Rg4 {[%clk 0:00:32.1]} 45. e6 {[%clk 0:00:08.5]} 45...
fxe6 {[%clk 0:00:32.1]} 46. e5 {[%clk 0:00:09.2]} 46... b4 {[%clk 0:00:30.8]}
47. Bh8 {[%clk 0:00:07.2]} 47... b3 {[%clk 0:00:31]} 48. Bf6 {[%clk 0:00:04.7]}
48... b2 {[%clk 0:00:31.3]} 49. Bg5 {[%clk 0:00:04.4]} 49... b1=Q {[%clk
0:00:31.8]} 50. Bc1 {[%clk 0:00:04.2]} 50... Qf5 {[%clk 0:00:32.1]} 51. Bg5
{[%clk 0:00:04.8]} 51... Qf8+ {[%clk 0:00:32.5]} 52. Kxg6 {[%clk 0:00:04.6]}
52... Qf7+ {[%clk 0:00:31.8]} 53. Kh6 {[%clk 0:00:05.2]} 53... Qh7# {[%clk
0:00:30.2]} 0-1

[Event "Late-Titled-Tuesday-Blitz-February-13-2024"]
[Site "Chess.com"]
[Date "2024.02.13"]
[Round "7"]
[White "tptagain"]
[Black "Mikhail_Golubev"]
[Result "1-0"]
[WhiteElo "2866"]
[BlackElo "2685"]
[TimeControl "180+1"]
[EndTime "15:18:26 PST"]
[Termination "tptagain won on time"]

1. d4 {[%clk 0:03:00.9]} 1... Nf6 {[%clk 0:02:59.4]} 2. Nf3 {[%clk 0:03:01.5]}
2... d6 {[%clk 0:02:59.3]} 3. e3 {[%clk 0:02:58.3]} 3... g6 {[%clk 0:02:58.9]}
4. b4 {[%clk 0:02:58.8]} 4... Bg7 {[%clk 0:02:59]} 5. Bb2 {[%clk 0:02:59.4]}
5... O-O {[%clk 0:02:59.1]} 6. Be2 {[%clk 0:02:59.8]} 6... c5 {[%clk 0:02:50.2]}
7. c3 {[%clk 0:02:47.7]} 7... cxb4 {[%clk 0:02:28.9]} 8. cxb4 {[%clk 0:02:47.5]}
8... Bf5 {[%clk 0:02:24.3]} 9. O-O {[%clk 0:02:46]} 9... Nbd7 {[%clk 0:02:24.3]}
10. Nc3 {[%clk 0:02:45.4]} 10... Nb6 {[%clk 0:02:24]} 11. Nd2 {[%clk 0:02:39.5]}
11... Rc8 {[%clk 0:02:20.6]} 12. Rc1 {[%clk 0:02:31.7]} 12... Be6 {[%clk
0:01:56.2]} 13. a4 {[%clk 0:02:31.6]} 13... Nc4 {[%clk 0:01:51.2]} 14. Nxc4
{[%clk 0:02:29.9]} 14... Bxc4 {[%clk 0:01:51.7]} 15. Bxc4 {[%clk 0:02:16.9]}
15... Rxc4 {[%clk 0:01:51.5]} 16. Qb3 {[%clk 0:02:17.7]} 16... Rc8 {[%clk
0:01:46.3]} 17. Rc2 {[%clk 0:02:01.3]} 17... d5 {[%clk 0:01:41.8]} 18. Rfc1
{[%clk 0:02:00.3]} 18... Qd7 {[%clk 0:01:36.6]} 19. h3 {[%clk 0:01:29.4]} 19...
e6 {[%clk 0:01:24.4]} 20. Nb5 {[%clk 0:01:17.3]} 20... a6 {[%clk 0:01:17.7]} 21.
Nc7 {[%clk 0:01:15.6]} 21... Ne4 {[%clk 0:01:11.7]} 22. b5 {[%clk 0:01:12.9]}
22... axb5 {[%clk 0:00:33.9]} 23. Qxb5 {[%clk 0:01:10.2]} 23... Qxb5 {[%clk
0:00:34]} 24. axb5 {[%clk 0:01:08.5]} 24... Rfd8 {[%clk 0:00:24.8]} 25. Ba3
{[%clk 0:00:59.7]} 25... Nd6 {[%clk 0:00:17.8]} 26. Bxd6 {[%clk 0:00:15.8]}
26... Rxd6 {[%clk 0:00:15.8]} 27. f4 {[%clk 0:00:12.3]} 27... Bf8 {[%clk
0:00:11.7]} 28. Kf2 {[%clk 0:00:10.4]} 28... f5 {[%clk 0:00:07.5]} 29. g4 {[%clk
0:00:09.5]} 29... Rb6 {[%clk 0:00:07.1]} 30. Kf3 {[%clk 0:00:08.8]} 30... Kf7
{[%clk 0:00:06.7]} 31. h4 {[%clk 0:00:04]} 31... h5 {[%clk 0:00:05.8]} 32. gxf5
{[%clk 0:00:04.4]} 32... gxf5 {[%clk 0:00:05.8]} 33. Ke2 {[%clk 0:00:03.4]}
33... Bd6 {[%clk 0:00:05.7]} 34. Kf3 {[%clk 0:00:03.1]} 34... Bxc7 {[%clk
0:00:05.7]} 35. Rxc7+ {[%clk 0:00:03.6]} 35... Rxc7 {[%clk 0:00:06.1]} 36. Rxc7+
{[%clk 0:00:04.2]} 36... Kf6 {[%clk 0:00:06.1]} 37. Rc5 {[%clk 0:00:04.8]} 37...
Rd6 {[%clk 0:00:06.3]} 38. Ke2 {[%clk 0:00:05.2]} 38... Rd8 {[%clk 0:00:04.9]}
39. Rc7 {[%clk 0:00:05]} 39... Rg8 {[%clk 0:00:03.8]} 40. Rxb7 {[%clk
0:00:05.1]} 40... Rg4 {[%clk 0:00:03.9]} 41. b6 {[%clk 0:00:04.3]} 41... Rxh4
{[%clk 0:00:04]} 42. Rh7 {[%clk 0:00:03.9]} 42... Rh2+ {[%clk 0:00:04.4]} 43.
Kf3 {[%clk 0:00:02.8]} 43... Rb2 {[%clk 0:00:04.1]} 44. b7 {[%clk 0:00:03]}
44... h4 {[%clk 0:00:04.4]} 45. Rh6+ {[%clk 0:00:01.8]} 45... Kf7 {[%clk
0:00:03.8]} 46. Rh8 {[%clk 0:00:01.8]} 1-0

[Event "Late-Titled-Tuesday-Blitz-February-13-2024"]
[Site "Chess.com"]
[Date "2024.02.13"]
[Round "7"]
[White "Antipov_Mikhail_Al"]
[Black "Doomfist26"]
[Result "1-0"]
[WhiteElo "2969"]
[BlackElo "2654"]
[TimeControl "180+1"]
[EndTime "15:18:29 PST"]
[Termination "Antipov_Mikhail_Al won by checkmate"]

1. e4 {[%clk 0:03:00.9]} 1... e6 {[%clk 0:02:54.5]} 2. d4 {[%clk 0:03:00.8]}
2... d5 {[%clk 0:02:55]} 3. Nd2 {[%clk 0:03:01.4]} 3... Nc6 {[%clk 0:02:55.1]}
4. Ngf3 {[%clk 0:02:57.5]} 4... Nf6 {[%clk 0:02:53.6]} 5. e5 {[%clk 0:02:57.9]}
5... Nd7 {[%clk 0:02:53.7]} 6. Bd3 {[%clk 0:02:58.6]} 6... f6 {[%clk 0:02:50.6]}
7. Ng5 {[%clk 0:02:55.5]} 7... Ndxe5 {[%clk 0:02:49.3]} 8. dxe5 {[%clk
0:02:54.7]} 8... fxg5 {[%clk 0:02:49.9]} 9. Qh5+ {[%clk 0:02:54.8]} 9... g6
{[%clk 0:02:50.1]} 10. Bxg6+ {[%clk 0:02:54.7]} 10... Kd7 {[%clk 0:02:50.8]} 11.
c4 {[%clk 0:02:55]} 11... Nxe5 {[%clk 0:02:50.1]} 12. Bc2 {[%clk 0:02:45.9]}
12... c6 {[%clk 0:02:50.2]} 13. O-O {[%clk 0:02:43]} 13... Bd6 {[%clk
0:02:47.1]} 14. b4 {[%clk 0:02:42.2]} 14... Qe8 {[%clk 0:02:31]} 15. Qe2 {[%clk
0:02:41.7]} 15... Rf8 {[%clk 0:02:17.2]} 16. b5 {[%clk 0:02:35.6]} 16... c5
{[%clk 0:02:04.3]} 17. a4 {[%clk 0:02:16.9]} 17... g4 {[%clk 0:02:00.5]} 18. Re1
{[%clk 0:01:55.7]} 18... Qh5 {[%clk 0:01:54.7]} 19. Nf1 {[%clk 0:01:07.9]} 19...
Nf3+ {[%clk 0:01:23]} 20. gxf3 {[%clk 0:01:07.4]} 20... gxf3 {[%clk 0:01:23.7]}
21. Qxe6+ {[%clk 0:00:46.8]} 21... Kc7 {[%clk 0:01:22.6]} 22. Ng3 {[%clk
0:00:44.7]} 22... Qh4 {[%clk 0:00:50.6]} 23. Qh6 {[%clk 0:00:34.2]} 23... Qxh6
{[%clk 0:00:14.7]} 24. Bxh6 {[%clk 0:00:35.1]} 24... Rg8 {[%clk 0:00:09.2]} 25.
cxd5 {[%clk 0:00:33.9]} 25... Bd7 {[%clk 0:00:08.4]} 26. Ra3 {[%clk 0:00:29.6]}
26... Bg4 {[%clk 0:00:05.1]} 27. Rae3 {[%clk 0:00:25]} 27... b6 {[%clk
0:00:04.3]} 28. h3 {[%clk 0:00:15.5]} 28... Bxh3 {[%clk 0:00:02.6]} 29. Rxf3
{[%clk 0:00:16]} 29... Rad8 {[%clk 0:00:02]} 30. Bd3 {[%clk 0:00:06.5]} 30...
Bg4 {[%clk 0:00:01.8]} 31. Rf7+ {[%clk 0:00:06.4]} 31... Rd7 {[%clk 0:00:02.4]}
32. Rxd7+ {[%clk 0:00:06.8]} 32... Kxd7 {[%clk 0:00:03.3]} 33. Kg2 {[%clk
0:00:07.7]} 33... Re8 {[%clk 0:00:01.5]} 34. Rxe8 {[%clk 0:00:07.1]} 34... Kxe8
{[%clk 0:00:02.2]} 35. Ne4 {[%clk 0:00:05.2]} 35... Be5 {[%clk 0:00:02.1]} 36.
f4 {[%clk 0:00:04.1]} 36... Bd4 {[%clk 0:00:02.4]} 37. Bg5 {[%clk 0:00:04.3]}
37... Bd1 {[%clk 0:00:02.4]} 38. Nf6+ {[%clk 0:00:03.7]} 38... Bxf6 {[%clk
0:00:01.6]} 39. Bxf6 {[%clk 0:00:04.6]} 39... Kd7 {[%clk 0:00:02.2]} 40. Be5
{[%clk 0:00:04.1]} 40... Bxa4 {[%clk 0:00:02.9]} 41. Bf5+ {[%clk 0:00:02.1]}
41... Kd8 {[%clk 0:00:03.5]} 42. Bd3 {[%clk 0:00:01.9]} 42... Kd7 {[%clk
0:00:02]} 43. f5 {[%clk 0:00:01.8]} 43... Bb3 {[%clk 0:00:02.7]} 44. Be4 {[%clk
0:00:02.5]} 44... c4 {[%clk 0:00:03.2]} 45. f6 {[%clk 0:00:02.8]} 45... Ba4
{[%clk 0:00:03.9]} 46. Bf5+ {[%clk 0:00:03.2]} 46... Ke8 {[%clk 0:00:04.5]} 47.
d6 {[%clk 0:00:03]} 47... Bxb5 {[%clk 0:00:04.9]} 48. Be6 {[%clk 0:00:03.7]}
48... a5 {[%clk 0:00:03.8]} 49. Bf4 {[%clk 0:00:03.5]} 49... a4 {[%clk
0:00:03.8]} 50. f7+ {[%clk 0:00:03.8]} 50... Kf8 {[%clk 0:00:04.5]} 51. Bh6#
{[%clk 0:00:04.5]} 1-0

[Event "Late-Titled-Tuesday-Blitz-February-13-2024"]
[Site "Chess.com"]
[Date "2024.02.13"]
[Round "7"]
[White "stollenmonster"]
[Black "Yurovskykh_Oleksandr"]
[Result "1-0"]
[WhiteElo "2868"]
[BlackElo "2689"]
[TimeControl "180+1"]
[EndTime "15:18:35 PST"]
[Termination "stollenmonster won by resignation"]

1. e4 {[%clk 0:03:00.9]} 1... e6 {[%clk 0:02:59.8]} 2. Nc3 {[%clk 0:03:00.6]}
2... d5 {[%clk 0:02:59.2]} 3. g3 {[%clk 0:03:01]} 3... Nf6 {[%clk 0:02:55.5]} 4.
Bg2 {[%clk 0:03:01.3]} 4... Be7 {[%clk 0:02:55.5]} 5. d4 {[%clk 0:02:59.6]} 5...
O-O {[%clk 0:02:54.4]} 6. Nge2 {[%clk 0:03:00.2]} 6... dxe4 {[%clk 0:02:44.8]}
7. Nxe4 {[%clk 0:02:59.6]} 7... Nxe4 {[%clk 0:02:45.4]} 8. Bxe4 {[%clk
0:03:00.5]} 8... Nd7 {[%clk 0:02:45.5]} 9. O-O {[%clk 0:03:00.4]} 9... Nf6
{[%clk 0:02:45.7]} 10. Bg2 {[%clk 0:03:00.8]} 10... Rb8 {[%clk 0:02:45.8]} 11.
c4 {[%clk 0:03:01]} 11... b6 {[%clk 0:02:46]} 12. Nc3 {[%clk 0:03:01.5]} 12...
Bb7 {[%clk 0:02:46.4]} 13. Bxb7 {[%clk 0:03:02]} 13... Rxb7 {[%clk 0:02:47.3]}
14. Qf3 {[%clk 0:03:01.9]} 14... Qa8 {[%clk 0:02:46.8]} 15. Re1 {[%clk
0:03:01.3]} 15... Rbb8 {[%clk 0:02:45.8]} 16. d5 {[%clk 0:02:59.8]} 16... Rfe8
{[%clk 0:02:44.8]} 17. Bg5 {[%clk 0:02:59.9]} 17... Nxd5 {[%clk 0:02:39.8]} 18.
cxd5 {[%clk 0:02:52.9]} 18... Bxg5 {[%clk 0:02:39.4]} 19. Qg4 {[%clk 0:02:52.3]}
19... Bf6 {[%clk 0:02:33.7]} 20. dxe6 {[%clk 0:02:45.6]} 20... fxe6 {[%clk
0:02:33.2]} 21. Ne4 {[%clk 0:02:10.2]} 21... Bxb2 {[%clk 0:02:15.4]} 22. Rad1
{[%clk 0:02:07]} 22... Rbd8 {[%clk 0:02:05.7]} 23. Ng5 {[%clk 0:02:04.5]} 23...
Rxd1 {[%clk 0:01:56.7]} 24. Qxd1 {[%clk 0:02:02]} 24... Bf6 {[%clk 0:01:45.1]}
25. Nxe6 {[%clk 0:01:59.1]} 25... Qc6 {[%clk 0:01:19.5]} 26. Qb3 {[%clk
0:01:56.4]} 26... Kh8 {[%clk 0:01:16.2]} 27. Re3 {[%clk 0:01:56.6]} 27... Qc1+
{[%clk 0:01:13.7]} 28. Kg2 {[%clk 0:01:56.4]} 28... Qc6+ {[%clk 0:01:14.3]} 29.
Kg1 {[%clk 0:01:56.4]} 29... h6 {[%clk 0:01:10.6]} 30. h4 {[%clk 0:01:52.5]}
30... Qc1+ {[%clk 0:01:07.9]} 31. Kg2 {[%clk 0:01:50.6]} 31... Qc6+ {[%clk
0:01:08]} 32. Kh2 {[%clk 0:01:50.8]} 32... Qd6 {[%clk 0:01:02.9]} 33. Qc4 {[%clk
0:01:38.2]} 33... c5 {[%clk 0:01:02]} 34. Ng5 {[%clk 0:01:29.3]} 34... Qf8
{[%clk 0:00:38.9]} 35. Rf3 {[%clk 0:01:10.7]} 35... hxg5 {[%clk 0:00:35.8]} 36.
hxg5 {[%clk 0:01:10.8]} 36... Qg8 {[%clk 0:00:32.6]} 37. Qg4 {[%clk 0:00:42.1]}
37... Qh7+ {[%clk 0:00:32.1]} 38. Kg2 {[%clk 0:00:42]} 38... Bd4 {[%clk
0:00:27.3]} 39. g6 {[%clk 0:00:41.2]} 39... Qh6 {[%clk 0:00:26.8]} 40. Rf5
{[%clk 0:00:39.8]} 40... Bxf2 {[%clk 0:00:15]} 41. Rh5 {[%clk 0:00:25.9]} 41...
Be3 {[%clk 0:00:13.9]} 42. Rxh6+ {[%clk 0:00:26.3]} 42... Bxh6 {[%clk
0:00:14.8]} 43. Qd7 {[%clk 0:00:26.5]} 43... Rf8 {[%clk 0:00:11.1]} 44. Qxa7
{[%clk 0:00:25.8]} 44... c4 {[%clk 0:00:04]} 45. Qxb6 {[%clk 0:00:25.8]} 45...
c3 {[%clk 0:00:04.4]} 46. Qc5 {[%clk 0:00:26]} 46... Ra8 {[%clk 0:00:04.4]} 47.
a4 {[%clk 0:00:23.9]} 47... Bd2 {[%clk 0:00:02.4]} 48. a5 {[%clk 0:00:22.4]}
48... c2 {[%clk 0:00:01.2]} 49. Qxc2 {[%clk 0:00:21.7]} 49... Bxa5 {[%clk
0:00:01.9]} 50. Qe4 {[%clk 0:00:21.5]} 50... Rd8 {[%clk 0:00:01.9]} 51. Qh4+
{[%clk 0:00:21.1]} 51... Kg8 {[%clk 0:00:02.4]} 52. Qh7+ {[%clk 0:00:21.3]}
52... Kf8 {[%clk 0:00:02.7]} 53. Qh8+ {[%clk 0:00:21.8]} 53... Ke7 {[%clk
0:00:03.6]} 54. Qxg7+ {[%clk 0:00:22.1]} 54... Kd6 {[%clk 0:00:03.9]} 55. Qf7
{[%clk 0:00:22.7]} 55... Bc7 {[%clk 0:00:03.5]} 56. g7 {[%clk 0:00:23]} 56...
Kc5 {[%clk 0:00:02.4]} 57. g8=Q {[%clk 0:00:23.1]} 1-0